bitfinex/quotes_BTCUSD_20241117
["timestamp","ask_amount","ask_price","bid_price","bid_amount"]
[1731863708454,1.3999823,90275.0,90274.0,1.70856034]
[1731863708915,1.3999823,90275.0,90274.0,1.66425034]
[1731863709136,1.3999823,90275.0,90274.0,1.66325034]
[1731863709346,1.23468975,90275.0,90274.0,1.61979714]
[1731863709551,1.25268975,90275.0,90274.0,1.55433214]
[1731863709808,1.25268975,90275.0,90274.0,1.46693214]
[1731863710019,1.42231772,90275.0,90274.0,1.46693214]
[1731863710241,1.42231772,90275.0,90274.0,1.46593214]
[1731863710242,1.23911327,90275.0,90274.0,1.46593214]
[1731863710502,1.37177106,90275.0,90274.0,0.43147101]
[1731863710711,0.245792,90259.0,90258.0,0.00583268]
[1731863710925,0.89584979,90259.0,90258.0,0.00583268]
[1731863711141,0.91631814,90259.0,90258.0,0.00583268]
[1731863711563,0.91631814,90259.0,90235.0,0.16615988]
[1731863711564,0.36046279,90248.0,90247.0,7.8e-07]
[1731863711773,0.48999369,90248.0,90247.0,7.8e-07]
[1731863711997,1.02539369,90248.0,90247.0,7.8e-07]
[1731863712225,0.48999369,90248.0,90247.0,7.8e-07]
[1731863713290,0.42075905,90248.0,90247.0,7.8e-07]
[1731863713760,0.39575905,90248.0,90247.0,7.8e-07]
[1731863714852,0.21986755,90248.0,90247.0,7.8e-07]
[1731863715065,0.21986755,90248.0,90247.0,0.07870078]
[1731863715290,0.21986755,90248.0,90247.0,0.07970078]
[1731863715990,0.22086755,90248.0,90247.0,0.07870078]
[1731863716640,0.21986755,90248.0,90247.0,0.07970078]
[1731863716856,0.10906255,90248.0,90247.0,0.07970078]
[1731863717068,0.11006255,90248.0,90247.0,0.07970078]
[1731863717302,0.22086755,90248.0,90247.0,0.07970078]
[1731863717576,0.11006255,90248.0,90247.0,0.07970078]
[1731863718009,0.11006255,90248.0,90247.0,0.07870078]
[1731863718220,0.11006255,90248.0,90247.0,0.07970078]
[1731863718653,0.11006255,90248.0,90247.0,0.07870078]
[1731863718845,0.10906255,90248.0,90247.0,0.07870078]
[1731863719153,0.10906255,90248.0,90247.0,0.07970078]
[1731863719371,0.10906255,90248.0,90247.0,0.08070078]
[1731863719601,0.10906255,90248.0,90247.0,0.19150778]
[1731863720500,0.10906255,90248.0,90247.0,0.08070078]
[1731863722701,0.11077655,90248.0,90247.0,0.08070078]
[1731863722966,0.001714,90248.0,90247.0,0.30616557]
[1731863723177,0.16615988,90270.0,90264.0,0.110785]
[1731863723398,0.16615988,90270.0,90247.0,0.11665857]
[1731863723399,0.21984255,90269.0,90265.0,0.11465779]
[1731863723614,0.10906255,90269.0,90265.0,0.11465779]
[1731863724759,0.10906255,90269.0,90266.0,0.110783]
[1731863724981,0.332345,90268.0,90265.0,0.11465779]
[1731863725229,0.110783,90266.0,90265.0,0.11465779]
[1731863725451,0.21984555,90266.0,90265.0,0.11465779]
[1731863725863,0.21984555,90266.0,90265.0,0.11665779]
[1731863726074,0.10906255,90266.0,90265.0,0.11565779]
[1731863726587,0.10906255,90266.0,90265.0,0.24295779]
[1731863726799,0.10906255,90266.0,90265.0,0.24195779]
[1731863727022,0.21984555,90266.0,90265.0,0.1283]
[1731863727249,0.21984555,90266.0,90265.0,0.1273]
[1731863727470,0.21984555,90266.0,90265.0,0.1283]
[1731863727885,0.21984555,90266.0,90265.0,0.1273]
[1731863728359,0.22484555,90266.0,90265.0,0.1283]
[1731863728613,0.22484555,90266.0,90265.0,0.1273]
[1731863728874,0.22484555,90266.0,90265.0,0.1283]
[1731863729134,0.22484555,90266.0,90265.0,0.1273]
[1731863729361,0.21984555,90266.0,90265.0,0.1273]
[1731863729803,0.21984555,90266.0,90265.0,0.1263]
[1731863730045,0.21984555,90266.0,90265.0,0.1273]
[1731863730279,0.21984555,90266.0,90265.0,0.1263]
[1731863730497,0.21984555,90266.0,90265.0,0.1273]
[1731863730723,0.21984555,90266.0,90265.0,0.1283]
[1731863731215,0.21984555,90266.0,90265.0,0.1273]
[1731863731441,0.21984555,90266.0,90265.0,0.1283]
[1731863731905,0.21984555,90266.0,90265.0,0.1273]
[1731863732129,0.22639434,90266.0,90265.0,0.1283]
[1731863732355,0.22639434,90266.0,90265.0,0.1273]
[1731863732611,0.22639434,90266.0,90265.0,0.1283]
[1731863732826,0.22639434,90266.0,90265.0,0.1273]
[1731863733263,0.22639434,90266.0,90265.0,0.1283]
[1731863733995,0.22639434,90266.0,90265.0,0.1263]
[1731863734261,0.22810834,90266.0,90265.0,0.1283]
[1731863734699,0.22810834,90266.0,90265.0,0.1273]
[1731863735180,0.11732534,90266.0,90265.0,0.1283]
[1731863735878,0.00826279,90266.0,90265.0,0.238084]
[1731863736125,0.00826279,90266.0,90265.0,0.239084]
[1731863736340,0.001714,90266.0,90265.0,0.239084]
[1731863736582,0.001714,90266.0,90265.0,0.238084]
[1731863736864,0.001714,90266.0,90265.0,0.239084]
[1731863737366,0.001714,90266.0,90265.0,0.238084]
[1731863738065,0.001714,90266.0,90265.0,0.239084]
[1731863738512,0.001714,90266.0,90265.0,0.238084]
[1731863738960,0.001714,90266.0,90265.0,0.239084]
[1731863739655,0.001714,90266.0,90265.0,0.238084]
[1731863740119,0.001714,90266.0,90265.0,0.237084]
[1731863740339,0.001714,90266.0,90265.0,0.238084]
[1731863740580,0.001714,90266.0,90265.0,0.239084]
[1731863744777,0.001714,90266.0,90265.0,0.1283]
[1731863744994,0.001714,90266.0,90265.0,0.239084]
[1731863745216,0.00800127,90266.0,90265.0,0.239084]
[1731863745444,0.00800127,90266.0,90265.0,0.1283]
[1731863745663,0.11706382,90266.0,90265.0,0.1283]
[1731863746118,0.11706382,90266.0,90265.0,0.1291569]
[1731863746339,0.22784682,90266.0,90265.0,0.1291569]
[1731863746558,0.22784682,90266.0,90265.0,0.1271569]
[1731863746824,0.22784682,90266.0,90265.0,0.1291569]
[1731863747047,0.11706382,90266.0,90265.0,0.1291569]
[1731863747937,0.22784682,90266.0,90265.0,0.1291569]
[1731863748170,0.22784682,90266.0,90265.0,0.1271569]
[1731863748403,0.22784682,90266.0,90265.0,0.1281569]
[1731863749651,0.22784682,90266.0,90265.0,0.1291569]
[1731863750107,0.11706382,90266.0,90265.0,0.2399409]
[1731863750346,0.11706382,90266.0,90265.0,0.1291569]
[1731863750597,0.11077655,90266.0,90265.0,0.1291569]
[1731863750808,0.11707449,90266.0,90265.0,0.1291569]
[1731863751495,0.11707449,90266.0,90265.0,0.2399409]
[1731863751965,0.001714,90266.0,90265.0,0.2399409]
[1731863754775,0.001714,90266.0,90265.0,0.1291569]
[1731863755223,0.00793843,90266.0,90265.0,0.1291569]
[1731863755466,0.001714,90266.0,90265.0,0.1291569]
[1731863755710,0.00793843,90266.0,90265.0,0.1291569]
[1731863755949,0.001714,90266.0,90265.0,0.1291569]
[1731863756195,0.00794168,90266.0,90265.0,0.1291569]
[1731863756441,0.00795335,90266.0,90265.0,0.1291569]
[1731863756676,0.00795335,90266.0,90265.0,0.2399409]
[1731863757341,0.00795335,90266.0,90265.0,0.1291569]
[1731863758309,0.02866564,90266.0,90265.0,0.1291569]
[1731863759679,0.02866564,90266.0,90265.0,0.2399409]
[1731863760126,0.02866564,90266.0,90265.0,0.1291569]
[1731863761319,0.41467107,90266.0,90265.0,0.0028569]
[1731863761551,0.24851119,90266.0,90265.0,0.0028569]
[1731863762286,0.24851119,90266.0,90265.0,0.0018569]
[1731863762959,0.61515189,90266.0,90265.0,0.0018569]
[1731863763223,0.61515189,90266.0,90265.0,0.0028569]
[1731863763467,0.50436889,90266.0,90265.0,0.0028569]
[1731863763709,0.50436889,90266.0,90265.0,0.0018569]
[1731863763710,0.13772819,90266.0,90265.0,0.0018569]
[1731863763933,0.13772819,90266.0,90265.0,0.0028569]
[1731863764160,0.23706372,90266.0,90265.0,0.0028569]
[1731863764382,0.32714457,90266.0,90265.0,0.0018569]
[1731863764607,0.2277989,90266.0,90265.0,0.0018569]
[1731863764806,0.37680024,90266.0,90265.0,0.0018569]
[1731863765083,0.2277989,90266.0,90265.0,0.0018569]
[1731863765341,0.24851251,90266.0,90265.0,0.0028569]
[1731863765569,0.61526762,90266.0,90265.0,0.0028569]
[1731863765806,0.39754604,90266.0,90265.0,0.0028569]
[1731863766336,0.61527284,90266.0,90265.0,0.0028569]
[1731863766785,0.39756881,90266.0,90265.0,0.0028569]
[1731863767002,0.61532842,90266.0,90265.0,0.0028569]
[1731863767281,0.81382459,90266.0,90265.0,0.0028569]
[1731863768385,0.79341547,90266.0,90265.0,0.0028569]
[1731863769292,0.79343117,90266.0,90265.0,0.0028569]
[1731863769523,0.59461481,90266.0,90265.0,0.0028569]
[1731863769783,0.79343453,90266.0,90265.0,0.0028569]
[1731863770004,0.68265153,90266.0,90254.0,0.0484]
[1731863770248,0.09940946,90260.0,90256.0,0.16615988]
[1731863770458,0.110794,90257.0,90256.0,0.16615988]
[1731863770680,0.110797,90255.0,90254.0,0.0484]
[1731863770902,0.110799,90254.0,90250.0,0.11465779]
[1731863771189,0.02071169,90253.0,90250.0,0.11465779]
[1731863771408,0.02071169,90252.0,90250.0,0.11465779]
[1731863771667,0.02071169,90251.0,90250.0,0.11465779]
[1731863772136,0.02700005,90251.0,90250.0,0.11465779]
[1731863772396,0.13780205,90251.0,90250.0,0.11465779]
[1731863772649,0.13780205,90251.0,90250.0,0.11565779]
[1731863772886,0.02700005,90251.0,90250.0,0.11565779]
[1731863773329,0.02700005,90251.0,90250.0,0.11465779]
[1731863774749,0.02700005,90251.0,90250.0,0.11565779]
[1731863775066,0.02700005,90251.0,90250.0,0.11465779]
[1731863775127,0.13780205,90251.0,90250.0,0.11465779]
[1731863775724,0.13780205,90251.0,90248.0,0.0784]
[1731863775725,0.110804,90249.0,90248.0,0.0784]
[1731863775947,0.24057824,90249.0,90248.0,0.0784]
[1731863776178,0.24686295,90249.0,90248.0,0.0784]
[1731863778098,0.24686295,90249.0,90248.0,0.0804]
[1731863778326,0.24686295,90249.0,90248.0,0.001]
[1731863778548,0.110805,90248.0,90247.0,7.8e-07]
[1731863778766,0.27369049,90248.0,90247.0,7.8e-07]
[1731863779008,0.27996733,90248.0,90247.0,7.8e-07]
[1731863779239,0.29031452,90248.0,90247.0,7.8e-07]
[1731863781123,1.02816807,90248.0,90247.0,0.00200078]
[1731863781361,1.02816807,90248.0,90247.0,0.00100078]
[1731863781591,1.02816807,90248.0,90247.0,7.8e-07]
[1731863781803,1.02816807,90248.0,90247.0,0.00100078]
[1731863782017,1.02816807,90248.0,90247.0,7.8e-07]
[1731863782252,1.02816807,90248.0,90232.0,0.0787559]
[1731863782253,0.005,90246.0,90232.0,0.0787559]
[1731863782478,0.110824,90233.0,90232.0,0.0787559]
[1731863782740,0.17499413,90233.0,90232.0,0.0787559]
[1731863783178,0.17298303,90233.0,90232.0,0.0787559]
[1731863783416,0.13778047,90233.0,90232.0,0.0787559]
[1731863783666,0.13985236,90233.0,90232.0,0.0787559]
[1731863784125,0.15018309,90233.0,90232.0,0.0797559]
[1731863784336,0.25924564,90233.0,90232.0,0.0008559]
[1731863784801,0.25924564,90233.0,90232.0,0.0018559]
[1731863785029,0.25924041,90233.0,90232.0,0.0018559]
[1731863785335,0.29228663,90233.0,90232.0,0.0028559]
[1731863785600,0.29020685,90233.0,90232.0,0.0028559]
[1731863785808,0.34130493,90233.0,90232.0,0.0028559]
[1731863786030,0.75229046,90233.0,90232.0,0.0028559]
[1731863786277,0.95278696,90233.0,90232.0,0.0028559]
[1731863786484,0.85229694,90233.0,90232.0,0.0028559]
[1731863786701,0.115842,90218.0,90217.0,0.16615988]
[1731863786919,0.28898796,90218.0,90217.0,0.16615988]
[1731863787138,0.29715295,90218.0,90217.0,0.16615988]
[1731863787349,0.29715295,90218.0,90205.0,0.19901044]
[1731863787350,0.110857,90206.0,90205.0,0.19901044]
[1731863787592,0.24063124,90206.0,90205.0,0.19901044]
[1731863787806,0.25095674,90206.0,90205.0,0.19901044]
[1731863788028,0.25906426,90206.0,90205.0,0.19901044]
[1731863788452,0.13788176,90206.0,90205.0,0.19901044]
[1731863788663,0.13788176,90206.0,90201.0,0.19255779]
[1731863788878,0.12977424,90205.0,90201.0,0.19255779]
[1731863789342,0.24063224,90205.0,90201.0,0.19255779]
[1731863789555,0.21992055,90205.0,90201.0,0.19255779]
[1731863789778,0.00809794,90204.0,90201.0,0.19255779]
[1731863789999,0.10906255,90203.0,90201.0,0.19255779]
[1731863790471,0.00808836,90202.0,90201.0,0.19255779]
[1731863790683,0.00808836,90202.0,90201.0,0.30342079]
[1731863791103,0.27700988,90212.0,90205.0,0.110858]
[1731863791322,0.110852,90210.0,90203.0,0.11086]
[1731863791544,0.10906255,90209.0,90201.0,0.19255779]
[1731863791772,0.10906255,90209.0,90204.0,0.16615988]
[1731863791773,0.11897589,90209.0,90204.0,0.16615988]
[1731863791987,0.11897589,90209.0,90201.0,0.19255779]
[1731863791988,0.00812189,90209.0,90208.0,0.22551179]
[1731863792199,0.110848,90214.0,90208.0,0.22551179]
[1731863792417,0.11717175,90213.0,90208.0,0.11465779]
[1731863792643,0.221699,90212.0,90202.0,0.0496]
[1731863792859,0.11717175,90213.0,90202.0,0.0496]
[1731863792860,0.11086,90204.0,90202.0,0.0496]
[1731863793092,0.10906255,90204.0,90202.0,0.0496]
[1731863793306,0.00807328,90203.0,90202.0,0.0496]
[1731863793524,0.00807328,90203.0,90202.0,0.160462]
[1731863793957,0.10906255,90204.0,90203.0,0.110861]
[1731863794841,0.11714062,90204.0,90203.0,0.110861]
[1731863795539,0.11714062,90204.0,90203.0,0.111861]
[1731863795808,0.11714062,90204.0,90203.0,0.001]
[1731863796258,0.11714062,90204.0,90203.0,0.111861]
[1731863796482,0.11714062,90204.0,90203.0,0.001]
[1731863797428,0.11714062,90204.0,90203.0,0.111861]
[1731863797668,0.11714062,90204.0,90203.0,0.110861]
[1731863797917,0.11714062,90204.0,90203.0,0.111861]
[1731863798166,0.00807807,90204.0,90203.0,0.111861]
[1731863798408,0.16615988,90217.0,90202.0,0.0496]
[1731863798631,0.16615988,90217.0,90212.0,0.11465779]
[1731863798632,0.11699583,90216.0,90212.0,0.11465779]
[1731863798859,0.11699583,90216.0,90213.0,0.110848]
[1731863799116,0.11699583,90216.0,90212.0,0.11465779]
[1731863800266,0.221692,90215.0,90205.0,0.11465779]
[1731863800515,0.10906255,90214.0,90205.0,0.11465779]
[1731863800745,0.11713829,90214.0,90209.0,0.110852]
[1731863801248,0.11713829,90214.0,90206.0,0.110856]
[1731863801470,0.11713829,90214.0,90195.0,0.22174]
[1731863801471,0.03088778,90213.0,90200.0,0.000167]
[1731863801698,0.110857,90206.0,90200.0,0.111031]
[1731863801918,0.10906255,90205.0,90203.0,0.11086]
[1731863802142,0.10906255,90205.0,90200.0,0.000167]
[1731863802143,0.11709934,90205.0,90200.0,0.000167]
[1731863802419,0.110862,90202.0,90201.0,0.0008558]
[1731863802643,0.22794697,90202.0,90201.0,0.0008558]
[1731863803389,0.23824286,90202.0,90201.0,0.0008558]
[1731863803649,0.25883475,90202.0,90201.0,0.0008558]
[1731863805724,0.2917974,90202.0,90201.0,0.0008558]
[1731863806236,0.29181508,90202.0,90201.0,0.0008558]
[1731863806679,0.25884756,90202.0,90201.0,0.0008558]
[1731863807126,0.27533541,90202.0,90201.0,0.0008558]
[1731863807861,0.30832256,90202.0,90201.0,0.0008558]
[1731863809501,0.30836479,90202.0,90201.0,0.0008558]
[1731863810393,0.19750279,90202.0,90201.0,0.0008558]
[1731863810621,0.110863,90201.0,90200.0,2.611e-05]
[1731863810835,0.19734578,90201.0,90200.0,0.11089011]
[1731863811065,0.19734578,90201.0,90200.0,2.611e-05]
[1731863811991,0.30820878,90201.0,90200.0,2.611e-05]
[1731863813850,0.110867,90198.0,90194.0,0.04416175]
[1731863814144,0.30034737,90198.0,90194.0,0.04416175]
[1731863814392,0.30830307,90198.0,90194.0,0.04416175]
[1731863814875,0.28031592,90198.0,90194.0,0.04416175]
[1731863815318,0.26380763,90198.0,90194.0,0.04416175]
[1731863816685,0.26380763,90198.0,90183.0,0.0008566]
[1731863816686,0.36254451,90198.0,90183.0,0.0008566]
[1731863817137,0.110884,90184.0,90183.0,0.0008566]
[1731863817364,0.25086893,90184.0,90183.0,0.0008566]
[1731863817618,0.25875755,90184.0,90183.0,0.0008566]
[1731863818770,0.25875755,90184.0,90183.0,0.1117416]
[1731863818771,0.14787355,90184.0,90183.0,0.1117416]
[1731863818988,0.14787355,90184.0,90183.0,0.22639939]
[1731863819211,0.13998493,90184.0,90183.0,0.22639939]
[1731863819429,0.038811,90184.0,90183.0,0.22639939]
[1731863819651,0.03092238,90184.0,90183.0,0.35829939]
[1731863819890,0.01031768,90184.0,90183.0,0.35829939]
[1731863820143,0.16615988,90194.0,90183.0,0.35829939]
[1731863820343,0.10906255,90193.0,90183.0,0.24741439]
[1731863820609,0.1169943,90193.0,90183.0,0.24741439]
[1731863820821,0.02065835,90192.0,90190.0,0.110876]
[1731863821030,0.11690444,90191.0,90190.0,0.110877]
[1731863821239,0.13756416,90191.0,90190.0,0.110877]
[1731863822179,0.13756416,90191.0,90183.0,0.1327566]
[1731863822180,0.110882,90186.0,90183.0,0.1327566]
[1731863822423,0.25093273,90185.0,90183.0,0.0008566]
[1731863822670,0.14187118,90184.0,90183.0,0.0008566]
[1731863822907,0.25093373,90184.0,90183.0,0.0008566]
[1731863823156,0.25874331,90184.0,90183.0,0.0008566]
[1731863825020,0.26374331,90184.0,90183.0,0.0008566]
[1731863825880,0.26373575,90184.0,90183.0,0.0008566]
[1731863827663,0.41194045,90184.0,90183.0,0.0008566]
[1731863828771,0.110895,90175.0,90174.0,0.0008558]
[1731863828988,0.14004217,90175.0,90174.0,0.0008558]
[1731863829250,0.14765874,90175.0,90174.0,0.0008558]
[1731863829471,0.14765671,90175.0,90174.0,0.0008558]
[1731863830428,0.14765671,90175.0,90174.0,0.1117518]
[1731863830649,0.14004014,90175.0,90174.0,0.1117518]
[1731863830866,0.14004014,90175.0,90174.0,0.0008558]
[1731863831097,0.14765671,90175.0,90174.0,0.0008558]
[1731863831318,0.14765671,90175.0,90174.0,0.1117518]
[1731863831771,0.03859416,90175.0,90174.0,0.1117518]
[1731863831984,0.03859416,90175.0,90174.0,0.1590518]
[1731863832230,0.03097759,90175.0,90174.0,0.1590518]
[1731863832445,0.03097759,90175.0,90174.0,0.2353518]
[1731863833119,0.03097759,90183.0,90182.0,0.110886]
[1731863833335,0.03097759,90183.0,90182.0,0.22554379]
[1731863833604,0.03874152,90183.0,90182.0,0.34914379]
[1731863833811,0.03097759,90183.0,90182.0,0.34914379]
[1731863834028,0.03874152,90183.0,90182.0,0.34914379]
[1731863835108,0.03097759,90183.0,90182.0,0.34914379]
[1731863835774,0.14004014,90183.0,90182.0,0.34914379]
[1731863836209,0.1476236,90183.0,90182.0,0.23825779]
[1731863836421,0.1476236,90183.0,90182.0,0.1236]
[1731863836654,0.1476236,90183.0,90182.0,0.234486]
[1731863838310,0.1476236,90183.0,90182.0,0.1236]
[1731863838764,0.1476236,90183.0,90182.0,0.234486]
[1731863839018,0.1476236,90183.0,90182.0,0.34914379]
[1731863839223,0.14004014,90183.0,90182.0,0.34914379]
[1731863839456,0.14766343,90183.0,90182.0,0.34914379]
[1731863841609,0.14004014,90183.0,90182.0,0.34914379]
[1731863842039,0.14781433,90183.0,90182.0,0.34914379]
[1731863843503,0.03875178,90183.0,90182.0,0.35000039]
[1731863843786,0.01834414,90183.0,90182.0,0.27870039]
[1731863844036,0.16615988,90203.0,90190.0,0.005]
[1731863844238,0.16615988,90203.0,90196.0,0.35372679]
[1731863845624,0.110842,90218.0,90196.0,0.35372679]
[1731863845833,0.110844,90217.0,90196.0,0.35372679]
[1731863846718,0.221688,90217.0,90196.0,0.35372679]
[1731863847156,0.110844,90217.0,90196.0,0.35372679]
[1731863847376,0.16615988,90209.0,90196.0,0.35372679]
[1731863847616,0.16615988,90209.0,90190.0,0.005]
[1731863847617,0.11077535,90197.0,90190.0,0.005]
[1731863847824,0.10906255,90196.0,90192.0,0.221749]
[1731863848041,0.10906255,90196.0,90190.0,0.221753]
[1731863848274,0.10906255,90196.0,90182.0,0.0008566]
[1731863848492,0.21993155,90196.0,90189.0,0.110877]
[1731863848725,0.221741,90195.0,90186.0,0.11088]
[1731863848952,0.10906255,90194.0,90188.0,0.110878]
[1731863849172,0.10906255,90194.0,90189.0,0.110877]
[1731863849606,0.10906255,90194.0,90185.0,0.221766]
[1731863849839,0.10906255,90194.0,90190.0,0.110876]
[1731863850962,0.10906255,90194.0,90188.0,0.221758]
[1731863851195,0.10906255,90194.0,90189.0,0.221756]
[1731863851403,0.00644005,90193.0,90191.0,0.110875]
[1731863851631,0.10906255,90192.0,90191.0,0.110875]
[1731863851856,0.1154978,90192.0,90191.0,0.110875]
[1731863853206,0.10906255,90192.0,90191.0,0.110875]
[1731863853416,0.0017128,90197.0,90196.0,0.110869]
[1731863853676,0.0017128,90197.0,90196.0,0.22552679]
[1731863854112,0.0017128,90197.0,90196.0,0.23274406]
[1731863854325,0.0017128,90197.0,90196.0,0.46084406]
[1731863854556,0.0017128,90197.0,90196.0,0.45862679]
[1731863855027,0.0017128,90197.0,90196.0,0.59601448]
[1731863855281,0.16615988,90219.0,90206.0,0.0818]
[1731863855489,0.16615988,90219.0,90218.0,0.22549979]
[1731863855941,0.0017122,90232.0,90218.0,0.11465779]
[1731863856177,0.0017122,90232.0,90231.0,0.110826]
[1731863856696,0.11077475,90232.0,90231.0,0.110826]
[1731863858116,0.110829,90229.0,90222.0,0.110836]
[1731863858323,0.10906255,90228.0,90223.0,0.16615988]
[1731863858547,0.11574784,90228.0,90221.0,0.221677]
[1731863858775,0.11574784,90228.0,90227.0,0.110831]
[1731863859290,0.11574784,90228.0,90223.0,0.221672]
[1731863859522,0.11574784,90228.0,90226.0,0.110832]
[1731863859727,0.11574784,90228.0,90227.0,0.110831]
[1731863860187,0.10906255,90228.0,90227.0,0.110831]
[1731863862504,0.10906255,90228.0,90220.0,0.221679]
[1731863862712,0.110836,90223.0,90217.0,0.110843]
[1731863862925,0.10906255,90222.0,90221.0,0.110838]
[1731863863165,0.11569194,90222.0,90221.0,0.110838]
[1731863865549,0.11569194,90222.0,90217.0,0.11465779]
[1731863865790,0.11569194,90222.0,90221.0,0.110838]
[1731863866442,0.005,90221.0,90210.0,0.11465779]
[1731863866668,0.110844,90217.0,90210.0,0.11465779]
[1731863866891,0.33736235,90220.0,90215.0,0.110846]
[1731863866892,0.10906255,90216.0,90215.0,0.110846]
[1731863867167,0.1156544,90216.0,90215.0,0.22550379]
[1731863867613,0.10906255,90216.0,90215.0,0.22550379]
[1731863872506,0.0017132,90222.0,90221.0,0.110838]
[1731863872720,0.11077575,90222.0,90221.0,0.192638]
[1731863874003,0.0017132,90222.0,90221.0,0.239838]
[1731863874445,0.0017122,90232.0,90221.0,0.239838]
[1731863874446,0.0017122,90232.0,90221.0,0.16185779]
[1731863874699,0.0017122,90232.0,90231.0,0.34014158]
[1731863874953,0.0017122,90232.0,90231.0,0.11465779]
[1731863875380,0.00843558,90232.0,90222.0,0.075]
[1731863875619,0.10906255,90231.0,90225.0,0.110833]
[1731863875833,0.0067138,90230.0,90227.0,0.110831]
[1731863876042,0.10906255,90229.0,90227.0,0.110831]
[1731863876470,0.10906255,90229.0,90228.0,0.11083]
[1731863877144,0.10906255,90229.0,90228.0,0.22548779]
[1731863878971,0.10906255,90229.0,90221.0,0.04434302]
[1731863878972,0.110836,90224.0,90221.0,0.04434302]
[1731863879180,0.10906255,90223.0,90221.0,0.15518102]
[1731863879404,0.10906255,90223.0,90221.0,0.110838]
[1731863879847,0.10906255,90223.0,90219.0,0.110841]
[1731863880065,0.110849,90213.0,90207.0,0.185855]
[1731863880320,0.0017122,90232.0,90204.0,0.11465779]
[1731863880321,0.10906255,90212.0,90204.0,0.110858]
[1731863880526,0.10906255,90212.0,90202.0,0.16615988]
[1731863880779,0.110852,90210.0,90202.0,0.16615988]
[1731863880991,0.02060903,90211.0,90199.0,0.075]
[1731863880992,0.110854,90208.0,90199.0,0.075]
[1731863881218,0.110861,90203.0,90199.0,0.075]
[1731863881434,0.26487306,90220.0,90197.0,0.0008564]
[1731863881435,0.10906255,90201.0,90197.0,0.0008564]
[1731863881662,0.110866,90199.0,90197.0,0.0008564]
[1731863881876,0.12967158,90198.0,90197.0,0.0008564]
[1731863882398,0.10906255,90198.0,90197.0,0.0008564]
[1731863882617,0.10906255,90198.0,90197.0,0.1117244]
[1731863882876,0.09871318,90216.0,90215.0,0.110846]
[1731863883073,0.09871318,90216.0,90198.0,0.005]
[1731863883074,0.16615988,90212.0,90211.0,0.110851]
[1731863883294,0.12968837,90212.0,90211.0,0.44721079]
[1731863883514,0.13510928,90212.0,90211.0,0.44721079]
[1731863884363,0.02604673,90212.0,90211.0,0.57271079]
[1731863884563,0.00542091,90212.0,90211.0,0.57271079]
[1731863885009,0.0017128,90229.0,90226.0,0.110832]
[1731863885010,0.02064087,90227.0,90226.0,0.110832]
[1731863885220,0.12970342,90227.0,90226.0,0.30298979]
[1731863886087,0.12970342,90227.0,90223.0,0.110835]
[1731863886291,0.12970342,90227.0,90218.0,0.04498651]
[1731863886292,0.10906255,90226.0,90225.0,0.27699388]
[1731863886508,0.11459935,90226.0,90225.0,0.110834]
[1731863887142,0.13523958,90226.0,90225.0,0.110834]
[1731863887570,0.13523958,90226.0,90223.0,0.110835]
[1731863887780,0.02064023,90225.0,90218.0,0.11465779]
[1731863887993,0.11459935,90226.0,90218.0,0.11465779]
[1731863887994,0.10906255,90224.0,90221.0,0.16615988]
[1731863888209,0.11458977,90224.0,90223.0,0.110836]
[1731863888660,0.12970272,90224.0,90223.0,0.110836]
[1731863889285,0.02064017,90224.0,90223.0,0.193336]
[1731863889498,0.0017128,90229.0,90228.0,0.20033]
[1731863889732,0.0017128,90229.0,90228.0,0.46520398]
[1731863889984,0.0017128,90229.0,90228.0,0.46298779]
[1731863890625,0.0017128,90229.0,90228.0,0.34833]
[1731863890837,0.0017128,90229.0,90228.0,0.34633]
[1731863891535,0.0017128,90229.0,90228.0,0.33633]
[1731863891745,0.0017128,90229.0,90228.0,0.45598779]
[1731863894140,0.0017128,90229.0,90228.0,0.46098779]
[1731863894352,0.0017128,90229.0,90228.0,0.45598779]
[1731863894574,0.0017128,90229.0,90228.0,0.46098779]
[1731863895021,0.16615988,90260.0,90259.0,0.110792]
[1731863895265,0.16615988,90260.0,90242.0,0.005]
[1731863895266,0.16615988,90260.0,90243.0,0.221623]
[1731863895496,0.00488115,90260.0,90250.0,0.11465779]
[1731863895700,0.00488115,90260.0,90259.0,0.110792]
[1731863895916,0.001714,90266.0,90252.0,0.221601]
[1731863896128,0.001714,90266.0,90250.0,0.11465779]
[1731863896342,0.110786,90264.0,90257.0,0.110794]
[1731863896794,0.00490415,90263.0,90258.0,0.110792]
[1731863897008,0.00490415,90263.0,90259.0,0.110791]
[1731863897220,0.112498,90266.0,90259.0,0.110791]
[1731863897434,0.00490369,90262.0,90259.0,0.110791]
[1731863897658,0.00488594,90261.0,90259.0,0.110791]
[1731863898126,0.001714,90266.0,90251.0,0.221604]
[1731863898330,0.001714,90266.0,90259.0,0.110792]
[1731863898331,0.0048898,90260.0,90259.0,0.110792]
[1731863898545,0.10906255,90260.0,90259.0,0.110792]
[1731863898984,0.221584,90259.0,90250.0,0.04584933]
[1731863899245,0.110796,90256.0,90250.0,0.15665133]
[1731863899495,0.11395269,90255.0,90250.0,0.110802]
[1731863899703,0.11395269,90255.0,90251.0,0.1108]
[1731863900783,0.10906255,90252.0,90242.0,0.04504302]
[1731863901000,0.005,90249.0,90233.0,0.16615988]
[1731863901234,0.33067355,90248.0,90236.0,0.110819]
[1731863901457,0.110813,90242.0,90236.0,0.110819]
[1731863901707,0.11393684,90241.0,90236.0,0.110819]
[1731863902370,0.11393684,90241.0,90233.0,0.16615988]
[1731863902574,0.11393684,90241.0,90236.0,0.110819]
[1731863902829,0.11393684,90241.0,90237.0,0.110818]
[1731863903547,0.11393684,90241.0,90230.0,0.11965779]
[1731863903548,0.11393684,90241.0,90230.0,0.11465779]
[1731863903765,0.11082,90237.0,90229.0,0.110828]
[1731863904008,0.110823,90234.0,90224.0,0.22167]
[1731863904237,0.110823,90234.0,90223.0,0.21059969]
[1731863904238,0.110826,90231.0,90225.0,0.110833]
[1731863904473,0.10906255,90230.0,90228.0,0.110829]
[1731863904678,0.10906255,90230.0,90229.0,0.110829]
[1731863904895,0.10906255,90230.0,90227.0,0.110831]
[1731863905127,0.10906255,90230.0,90228.0,0.110829]
[1731863905620,0.10906255,90230.0,90229.0,0.110829]
[1731863905839,0.005,90229.0,90219.0,0.0008562]
[1731863906059,0.10906255,90228.0,90227.0,0.110831]
[1731863907410,0.10906255,90228.0,90219.0,0.0008562]
[1731863907635,0.11084,90220.0,90219.0,0.0008562]
[1731863907916,0.21990255,90220.0,90219.0,0.0008562]
[1731863908324,0.21990255,90220.0,90214.0,0.04437404]
[1731863908325,0.005,90212.0,90200.0,0.16615988]
[1731863908553,0.110863,90201.0,90200.0,0.16615988]
[1731863909010,0.02058202,90204.0,90186.0,0.299861]
[1731863909240,0.02058202,90213.0,90198.0,0.16615988]